bitfinex-derivatives/quotes_ETHF0:USTF0_20241105
["timestamp","ask_amount","ask_price","bid_price","bid_amount"]
[1730836112347,3.2078,2447.7,2447.6,0.40857]
[1730836113858,0.40858,2447.6,2447.5,1.31209]
[1730836114459,3.2078,2447.7,2447.5,0.9035]
[1730836114659,3.2078,2447.7,2447.6,0.40858]
[1730836119258,3.61636,2447.7,2447.6,0.40858]
[1730836119559,3.2078,2447.7,2447.2,0.095]
[1730836119754,3.2078,2447.7,2447.2,0.448]
[1730836119755,0.40863,2447.3,2447.2,0.448]
[1730836119960,3.2078,2447.4,2447.0,0.40867]
[1730836119961,0.40866,2447.2,2447.0,0.40867]
[1730836120165,0.40868,2447.0,2446.9,0.448]
[1730836120356,44.4466,2447.1,2446.8,1.5963]
[1730836120553,0.4087,2446.9,2446.8,1.5963]
[1730836120757,0.4087,2446.9,2446.8,1.131]
[1730836121162,0.4087,2446.9,2446.4,10.775]
[1730836121163,0.40872,2446.8,2446.5,0.40875]
[1730836121462,3.61652,2446.8,2446.5,0.40875]
[1730836121669,3.2078,2446.8,2446.4,0.465]
[1730836121856,0.40875,2446.7,2446.4,0.87377]
[1730836122052,3.61652,2446.8,2446.5,0.40876]
[1730836122257,0.40873,2446.7,2446.5,0.40875]
[1730836122760,3.2078,2446.8,2446.6,0.40874]
[1730836122966,3.61652,2446.8,2446.5,0.40875]
[1730836124250,0.40872,2446.8,2446.5,0.40875]
[1730836124453,0.40873,2446.7,2446.5,0.40875]
[1730836124861,3.2078,2446.8,2446.4,0.465]
[1730836125164,3.61652,2446.8,2446.6,0.40874]
[1730836125365,3.2078,2446.8,2446.5,0.40875]
[1730836125557,0.40873,2446.7,2446.5,0.40875]
[1730836125756,3.2078,2446.8,2446.4,0.465]
[1730836125958,0.40874,2446.7,2446.4,0.87377]
[1730836126363,3.2078,2446.8,2446.4,0.465]
[1730836126661,3.61652,2446.8,2446.5,0.40875]
[1730836127772,0.40873,2446.7,2446.5,0.40875]
[1730836128466,0.443,2446.7,2446.4,0.465]
[1730836128665,0.443,2446.7,2446.6,0.40875]
[1730836129367,0.85174,2446.7,2446.5,0.40875]
[1730836129564,0.443,2446.7,2446.6,0.40875]
[1730836129762,0.443,2446.7,2446.4,0.465]
[1730836129968,0.4088,2446.3,2446.2,0.40881]
[1730836130458,4.08747,2446.5,2446.0,2.0261]
[1730836130766,0.40878,2446.4,2446.2,0.4088]
[1730836131366,4.08747,2446.5,2446.3,0.4088]
[1730836131864,0.40881,2446.3,2446.1,0.40882]
[1730836132065,3.6787,2446.5,2446.1,0.40882]
[1730836132362,3.6787,2446.5,2446.0,2.0261]
[1730836132363,0.4088,2446.4,2446.2,0.40881]
[1730836133063,3.6787,2446.5,2446.0,0.8951]
[1730836133372,0.40888,2445.8,2445.7,0.095]
[1730836133564,3.2078,2445.8,2445.2,0.095]
[1730836133760,41.2382,2445.7,2445.4,0.40895]
[1730836133961,41.2382,2445.7,2445.0,3.7517]
[1730836134164,41.2382,2445.7,2445.4,0.40894]
[1730836134165,0.40891,2445.6,2445.4,0.40894]
[1730836134462,41.2382,2445.7,2445.0,3.7517]
[1730836134671,3.2078,2445.5,2445.1,0.409]
[1730836134873,0.40896,2445.4,2445.1,0.40898]
[1730836135071,3.2078,2445.5,2445.1,0.40898]
[1730836135272,3.18797713,2445.4,2445.0,0.4489]
[1730836135477,0.40899,2445.2,2445.0,0.4489]
[1730836135668,0.40899,2445.2,2444.7,4.9432]
[1730836135669,3.2078,2445.1,2444.7,0.095]
[1730836135870,3.2078,2444.8,2444.5,0.095]
[1730836136071,3.2078,2444.8,2444.3,0.4741]
[1730836136072,0.40911,2444.5,2444.3,0.4741]
[1730836136376,3.18797713,2444.6,2444.0,0.86327]
[1730836136377,3.61691,2444.4,2444.0,0.86327]
[1730836136571,3.61691,2444.4,2444.0,0.40918]
[1730836136572,3.61692,2444.4,2444.0,0.40918]
[1730836137369,40.8,2444.5,2443.7,0.095]
[1730836137370,3.2078,2444.1,2443.7,0.095]
[1730836137565,2.18447263,2444.1,2443.6,1.60524]
[1730836137970,3.18797713,2443.8,2443.4,0.9361]
[1730836138173,3.2078,2443.8,2443.5,0.40925]
[1730836138673,0.40926,2443.5,2443.1,0.095]
[1730836138876,3.2078,2443.2,2442.8,0.095]
[1730836139179,3.2078,2443.2,2442.8,0.40938]
[1730836139374,3.2078,2443.2,2442.6,0.9894]
[1730836139674,0.40937,2442.9,2442.5,3.2078]
[1730836139873,3.18797713,2442.8,2442.5,3.2078]
[1730836140071,3.2078,2443.2,2442.5,3.2078]
[1730836140271,3.61717,2442.9,2442.3,0.40946]
[1730836140473,3.2078,2442.9,2442.1,0.095]
[1730836140777,3.2078,2442.9,2442.3,3.61726]
[1730836140972,3.2078,2442.9,2442.3,0.40946]
[1730836141278,3.2078,2442.9,2442.1,0.095]
[1730836141279,3.2078,2442.9,2442.4,0.40944]
[1730836141474,1.77433277,2442.9,2442.4,0.40944]
[1730836141673,1.77433277,2442.9,2442.1,0.095]
[1730836142071,40.8,2442.8,2442.1,0.095]
[1730836142472,6.11514838,2442.9,2442.3,0.40946]
[1730836142671,6.11514838,2442.9,2442.1,0.095]
[1730836142672,0.40939,2442.8,2442.2,0.40947]
[1730836142879,6.11514838,2442.9,2442.3,0.40946]
[1730836143185,0.095,2443.3,2442.7,0.40939]
[1730836143186,3.2078,2443.2,2442.7,0.40939]
[1730836143372,3.2078,2443.2,2442.8,0.40938]
[1730836143575,3.2078,2443.2,2442.9,0.40936]
[1730836143875,3.2078,2443.2,2442.6,3.6608]
[1730836144269,3.2078,2443.2,2443.0,0.40934]
[1730836144777,3.2078,2443.2,2443.1,0.40933]
[1730836144977,3.2078,2443.2,2442.6,3.6608]
[1730836145180,3.2078,2443.2,2443.0,0.40934]
[1730836145481,3.2078,2443.2,2443.1,0.40933]
[1730836145972,7.13924561,2443.6,2442.9,3.2078]
[1730836146180,3.2078,2443.6,2442.9,3.2078]
[1730836146372,3.2078,2443.6,2443.5,0.40926]
[1730836146568,3.2078,2443.9,2443.5,0.40925]
[1730836146780,3.2078,2443.9,2443.6,0.40924]
[1730836146968,3.2078,2443.9,2443.2,3.2078]
[1730836147176,4.38844561,2444.1,2443.8,0.40921]
[1730836147383,4.38844561,2444.1,2443.9,0.4092]
[1730836147574,0.457,2444.1,2443.5,0.095]
[1730836147773,0.457,2444.1,2444.0,0.40918]
[1730836147978,0.457,2444.1,2443.5,3.2078]
[1730836147979,4.38844561,2444.1,2443.5,0.095]
[1730836148280,3.61703,2443.7,2443.3,0.095]
[1730836148472,3.2078,2443.7,2443.0,0.095]
[1730836148675,0.40927,2443.5,2443.0,0.095]
[1730836148878,3.2078,2443.4,2442.7,0.095]
[1730836149174,0.40935,2443.0,2442.5,4.1936]
[1730836149478,3.6467,2443.4,2442.5,4.0986]
[1730836150077,0.40932,2443.2,2442.8,0.40938]
[1730836150274,0.40934,2443.1,2442.7,0.40939]
[1730836150582,3.93144561,2443.3,2442.5,4.0986]
[1730836150776,3.93144561,2443.3,2443.0,0.40934]
[1730836150979,3.2078,2443.1,2442.5,0.8908]
[1730836151188,1.46212,2443.4,2442.5,0.8908]
[1730836151189,3.2078,2442.8,2442.6,0.4094]
[1730836151477,3.61719,2442.8,2442.5,0.452]
[1730836151681,3.2078,2442.8,2442.5,0.452]
[1730836151979,3.2078,2442.8,2442.6,0.40941]
[1730836152187,3.2078,2442.8,2442.5,0.452]
[1730836152188,3.2078,2442.8,2442.7,0.4094]
[1730836152483,3.2078,2442.8,2442.6,0.4094]
[1730836152687,3.2078,2442.8,2442.3,3.2078]
[1730836153480,0.448,2442.7,2442.1,0.4416]
[1730836153682,0.40946,2442.4,2442.1,0.85109]
[1730836153983,0.448,2442.7,2442.2,0.40948]
[1730836154189,4.37944561,2442.7,2441.9,3.2078]
[1730836154482,0.40948,2442.3,2442.0,0.40951]
[1730836154684,3.2078,2442.5,2441.9,3.2078]
[1730836154884,0.448,2442.7,2441.9,3.2078]
[1730836155280,0.40942,2442.6,2442.3,0.40946]
[1730836155474,0.448,2442.7,2442.4,0.40945]
[1730836155678,0.85741,2442.7,2442.4,0.40945]
[1730836155879,0.448,2442.7,2442.2,3.2078]
[1730836156085,0.85741,2442.7,2442.5,0.40943]
[1730836156286,0.85741,2442.7,2442.4,0.40944]
[1730836156490,0.448,2442.7,2442.2,3.2078]
[1730836156683,0.448,2442.7,2442.6,0.40942]
[1730836156880,0.448,2442.7,2442.2,3.2078]
[1730836157185,0.85741,2442.7,2442.4,0.40944]
[1730836157393,0.448,2442.7,2442.6,0.40942]
[1730836157580,3.2078,2442.8,2442.3,0.4611]
[1730836157778,3.61719,2442.8,2442.6,0.40941]
[1730836157994,3.2078,2442.8,2442.7,0.4094]
[1730836158482,7.3014,2442.8,2442.6,0.40941]
[1730836158681,3.2078,2442.8,2442.3,0.4611]
[1730836159193,3.2078,2442.8,2442.6,0.4094]
[1730836159385,3.2078,2442.8,2442.3,0.4611]
[1730836159685,3.2078,2442.8,2442.7,0.4094]
[1730836160691,3.6381,2443.1,2443.0,0.40935]
[1730836161187,3.6381,2443.1,2442.9,0.40935]
[1730836161392,3.6381,2443.1,2442.5,3.2078]
[1730836161587,3.2078,2443.1,2443.0,0.40935]
[1730836162189,40.8,2443.3,2442.8,3.2078]
[1730836162386,40.8,2443.3,2443.2,0.40931]
[1730836163587,40.8,2443.3,2442.8,3.2078]
[1730836163787,40.8,2443.3,2443.2,0.40931]
[1730836165085,3.2078,2443.4,2443.3,0.4093]
[1730836165288,0.40922,2443.8,2443.6,0.40925]
[1730836165289,3.2078,2443.7,2443.6,0.40925]
[1730836165485,3.6564,2444.1,2443.8,0.40921]
[1730836165688,4.06558,2444.1,2443.9,0.40919]
[1730836165892,3.6564,2444.1,2443.9,0.40919]
[1730836166084,40.8,2444.0,2443.9,0.40919]
[1730836166286,3.2078,2444.1,2444.0,0.40918]
[1730836166991,0.4289,2444.3,2444.2,0.40915]
[1730836167198,0.4289,2444.3,2443.8,3.2078]
[1730836167386,40.8,2444.2,2443.8,3.2078]
[1730836167592,3.61692,2444.4,2443.8,3.2078]
[1730836167593,3.2078,2444.4,2443.8,3.2078]
[1730836167893,0.40914,2444.3,2444.1,0.40915]
[1730836168098,3.2078,2444.4,2443.8,3.2078]
[1730836168397,3.2078,2444.4,2444.2,0.40913]
[1730836169493,3.2078,2444.4,2443.8,3.2078]
[1730836169695,0.4486,2444.7,2444.5,0.40909]
[1730836169696,7.99691561,2444.7,2444.5,0.40909]
[1730836170184,3.2078,2444.7,2444.6,0.40908]
[1730836170385,7.13924561,2444.7,2444.1,4.1077]
[1730836170586,7.13924561,2444.7,2444.1,4.9103]
[1730836170792,3.2078,2444.7,2444.6,0.40908]
[1730836171587,4.34046561,2445.0,2444.8,0.40904]
[1730836171588,7.54826561,2445.0,2444.8,0.40904]
[1730836171783,0.40904,2444.9,2444.7,0.40906]
[1730836171992,40.8,2444.9,2444.4,3.2078]
[1730836172489,0.4091,2444.5,2444.4,3.2078]
[1730836172891,4.5003,2444.5,2444.4,3.2078]
[1730836173195,41.2091,2444.5,2444.4,3.2078]
[1730836177504,0.4613,2444.6,2444.4,3.2078]
[1730836177796,0.4091,2444.5,2444.4,3.2078]
[1730836177989,0.4613,2444.6,2444.4,3.2078]
[1730836178498,41.2091,2444.5,2444.4,3.2078]
[1730836178796,40.8,2444.5,2444.4,3.2078]
[1730836179003,0.40909,2444.6,2444.4,3.61691]
[1730836179393,0.40909,2444.6,2444.4,3.2078]
[1730836179594,0.40908,2444.7,2444.5,0.4091]
[1730836179794,40.8,2444.8,2444.5,0.4091]
[1730836180093,40.8,2444.8,2444.4,3.2078]
[1730836180298,0.4091,2444.5,2444.4,3.2078]
[1730836180797,0.4091,2444.5,2444.4,3.61691]
[1730836181004,0.4091,2444.5,2444.4,3.2078]
[1730836184796,0.40913,2444.4,2444.2,3.61694]
[1730836185514,0.40913,2444.4,2443.9,2.05416698]
[1730836185515,11.23044561,2444.4,2443.9,1.07076647]
[1730836185800,11.23044561,2444.4,2443.5,3.2078]
[1730836185801,0.40938,2442.8,2442.7,0.614]
[1730836186003,3.93144561,2442.8,2441.7,1.78302186]
[1730836186203,40.8,2442.7,2442.0,4.0912]
[1730836186420,3.2078,2442.2,2442.0,4.0912]
[1730836186597,3.2078,2442.2,2441.6,3.2078]
[1730836186802,3.2078,2442.2,2441.9,4.0912]
[1730836186997,3.2078,2442.2,2442.0,4.0912]
[1730836187399,3.2078,2442.2,2442.1,4.0912]
[1730836187909,3.2078,2442.5,2442.1,4.0912]
[1730836188204,3.2078,2442.5,2442.0,3.2078]
[1730836188395,3.2078,2442.5,2442.4,4.0912]
[1730836189005,3.2078,2442.5,2441.7,3.93144561]
[1730836189006,7.13924561,2442.5,2441.0,3.2078]
[1730836189212,0.4489,2442.4,2441.1,4.0912]
[1730836189409,0.40967,2441.1,2440.6,0.205]
[1730836189613,3.2078,2440.8,2440.0,0.2]
[1730836189806,3.2078,2440.8,2440.4,4.0912]
[1730836190109,40.8,2440.7,2440.4,4.0912]
[1730836190301,40.8,2440.7,2440.0,0.2]
[1730836190302,3.2078,2440.5,2440.0,0.2]
[1730836190499,7.54901561,2440.5,2440.0,4.2912]
[1730836190709,40.8,2440.7,2440.4,4.0912]
[1730836192305,0.40975,2440.6,2440.4,4.0912]
[1730836192511,40.8,2440.7,2440.4,4.0912]
[1730836193007,40.8,2440.7,2440.5,4.0912]
[1730836193210,3.2078,2440.8,2440.6,4.0912]
[1730836193415,3.2078,2441.1,2440.7,4.0912]
[1730836193706,0.40968,2441.0,2440.9,4.0912]
[1730836193911,3.2078,2441.1,2440.9,4.0912]
[1730836193912,3.61748,2441.1,2440.9,4.0912]
[1730836194107,3.2078,2441.1,2440.9,4.0912]
[1730836194309,3.61747,2441.1,2440.9,4.0912]
[1730836194914,3.2078,2441.1,2440.9,4.0912]
[1730836195106,5.09587229,2441.7,2441.0,4.0912]
[1730836195107,0.6686,2441.7,2441.0,4.0912]
[1730836195307,3.4128,2442.2,2441.6,4.0912]
[1730836195526,3.4128,2442.2,2441.9,4.0912]
[1730836195527,0.4095,2442.1,2441.9,4.0912]
[1730836195720,3.2078,2442.0,2441.3,3.2078]
[1730836195908,3.2078,2442.0,2441.8,4.0912]
[1730836202322,3.61733,2442.0,2441.8,4.0912]
[1730836202623,3.2078,2442.0,2441.3,0.9266]
[1730836202818,0.40961,2441.5,2441.0,5.7549]
[1730836203022,0.40963,2441.4,2441.2,4.0912]
[1730836203414,0.40963,2441.3,2441.2,4.0912]
[1730836203716,3.2078,2441.4,2441.2,4.0912]
[1730836203916,40.8,2441.3,2441.2,4.0912]
[1730836204119,41.20963,2441.3,2441.2,4.0912]
[1730836204310,0.40969,2441.0,2440.5,2.089]
[1730836204619,3.61748,2441.1,2440.9,4.0912]
[1730836205021,4.0968,2441.0,2440.4,0.4351]
[1730836205318,0.40978,2440.5,2440.0,3.4078]
[1730836205521,3.2078,2440.7,2440.3,4.0912]
[1730836205818,0.40978,2440.5,2440.3,4.0912]
[1730836206018,0.40978,2440.4,2440.3,4.0912]
[1730836206219,0.4098,2440.3,2440.0,0.2]
[1730836206417,0.4098,2440.3,2440.2,4.0912]
[1730836206728,3.2078,2440.4,2440.1,4.0912]
[1730836206916,0.40982,2440.2,2440.1,4.0912]
[1730836207428,0.40981,2440.3,2440.1,4.0912]
[1730836207616,3.2078,2440.4,2440.1,4.0912]
[1730836207812,3.2078,2440.4,2440.0,0.2]
[1730836207813,0.40982,2440.2,2440.0,0.2]
[1730836208026,0.40982,2440.2,2440.0,4.2912]
[1730836208228,4.42727229,2440.3,2440.0,0.2]
[1730836208421,3.61763,2440.1,2440.0,0.2]
[1730836208921,7.71603,2440.1,2440.0,0.2]
[1730836209125,44.41763,2440.1,2440.0,0.2]
[1730836209432,48.51603,2440.1,2440.0,0.2]
[1730836210536,44.41763,2440.1,2440.0,0.2]
[1730836210722,44.0078,2440.1,2440.0,0.2]
[1730836210928,3.2078,2440.4,2440.0,4.2912]
[1730836211124,0.40978,2440.2,2440.0,4.2912]
[1730836211426,40.8,2440.2,2440.0,4.70101]
[1730836211628,3.2078,2440.4,2440.1,4.0912]
[1730836212028,3.4128,2441.1,2440.3,4.0912]
[1730836212324,0.40969,2440.8,2440.7,4.0912]
[1730836212725,0.40968,2440.8,2440.7,4.0912]
[1730836212923,3.2078,2440.8,2440.0,0.2]
[1730836213121,3.2078,2440.1,2438.2,3.2078]
[1730836213319,3.2078,2438.3,2437.4,0.61525]
[1730836213519,0.306,2439.7,2437.3,1.53310906]
[1730836213520,3.2078,2437.8,2437.3,4.94590906]
[1730836213734,3.2078,2437.8,2437.3,1.73810906]
[1730836214025,4.42727229,2437.5,2437.3,1.53310906]
[1730836214221,0.822,2439.3,2437.3,1.53310906]
[1730836214222,3.2078,2437.8,2437.3,1.53310906]
[1730836214422,3.2078,2437.5,2437.3,1.53310906]
[1730836214834,3.2078,2437.8,2437.4,0.205]
[1730836215131,4.42727229,2438.1,2437.3,1.53310906]
[1730836215132,40.8,2437.5,2437.3,1.53310906]
[1730836215628,3.2078,2438.1,2437.4,0.205]
[1730836215931,7.63507229,2438.1,2437.6,0.205]
[1730836216130,7.63507229,2438.1,2437.3,1.53310906]
[1730836216131,40.8,2438.0,2437.3,4.74090906]
[1730836216432,3.2078,2437.8,2437.4,0.205]
[1730836216623,3.61799,2437.8,2437.4,0.205]
[1730836217028,3.2078,2437.8,2437.6,0.205]
[1730836217235,7.3102,2437.8,2437.1,3.2078]
[1730836217528,3.2078,2437.8,2437.5,0.205]
[1730836217727,3.2078,2437.8,2436.9,0.4403]
[1730836217930,3.61805,2437.5,2437.2,0.205]
[1730836218120,3.2078,2437.5,2437.4,0.205]
[1730836218324,4.1032,2437.4,2436.1,3.2078]
[1730836218520,3.61813,2436.9,2436.6,0.205]
[1730836218829,3.61808,2437.2,2436.8,0.205]
[1730836219034,3.2078,2437.2,2437.0,0.205]
[1730836219228,0.205,2437.4,2437.1,0.205]
[1730836219426,0.205,2437.4,2436.7,3.2078]
[1730836219427,40.8,2437.3,2436.7,3.2078]
[1730836219736,0.205,2437.4,2437.3,0.205]
[1730836219937,3.2078,2436.1,2434.2,3.14955491]
[1730836220125,3.2078,2434.7,2434.2,0.571574]
[1730836220329,3.61857,2434.4,2433.9,3.87948073]
[1730836220537,4.42727229,2434.0,2433.9,3.87948073]
[1730836220733,3.2078,2434.1,2433.9,3.87948073]
[1730836220927,3.2078,2434.5,2434.0,7.1116]
[1730836221234,3.2078,2434.8,2434.6,3.9038]
[1730836221432,3.2078,2434.8,2433.9,0.205]
[1730836221631,3.2078,2434.2,2433.9,0.205]
[1730836221838,3.2078,2434.2,2433.3,3.6371]
[1730836222128,3.2078,2434.2,2434.0,2.65038]
[1730836222329,3.2078,2434.2,2433.4,4.08281]
[1730836222522,3.2078,2434.2,2434.0,2.65038]
[1730836222728,3.2078,2434.2,2433.9,2.65038]
[1730836223123,3.2078,2434.2,2433.4,3.2078]
[1730836223124,3.2078,2434.6,2434.1,2.65038]
[1730836223329,2.19123604,2435.2,2433.7,2.65038]
[1730836223330,3.61859,2434.2,2433.7,2.65038]
[1730836223527,3.61859,2434.2,2433.3,0.4293]
[1730836223528,3.2078,2433.9,2433.3,0.4293]
[1730836223834,3.2078,2433.6,2432.5,3.2078]
[1730836224029,3.2078,2433.3,2433.1,2.65038]
[1730836224428,4.1096,2433.2,2432.5,3.2078]
[1730836224623,3.2078,2433.0,2432.9,2.65038]
[1730836225034,3.2078,2433.3,2432.9,2.65038]
[1730836225829,3.2078,2433.3,2433.0,2.65038]
[1730836226024,3.2078,2433.3,2433.1,2.65038]
[1730836226333,3.2078,2433.3,2432.9,2.65038]
[1730836226539,3.61879,2433.0,2432.9,2.65038]
[1730836226747,0.41104,2432.8,2432.3,3.2078]
[1730836226927,4.42727229,2432.5,2432.4,2.65038]
[1730836227238,4.42727229,2433.2,2432.7,2.65038]
[1730836227532,8.04597229,2433.6,2433.1,2.65038]
[1730836227739,8.04597229,2433.6,2433.4,2.65038]
[1730836228041,7.63507229,2433.6,2433.0,2.65038]
[1730836228249,4.42727229,2433.1,2432.4,3.2078]
[1730836228533,4.1096,2433.5,2431.9,0.446]
[1730836228534,7.63507229,2432.5,2431.9,0.446]
[1730836228741,0.41119,2431.9,2431.5,3.2078]
[1730836228928,7.63507229,2432.0,2431.8,2.65038]
[1730836229127,7.63507229,2432.0,2431.9,2.65038]
[1730836229128,4.42727229,2432.0,2431.9,2.65038]
[1730836229332,3.2078,2432.4,2431.9,2.65038]
[1730836229333,7.63507229,2432.4,2431.9,2.65038]
[1730836229532,7.63507229,2432.4,2431.5,3.2078]
[1730836229742,3.2078,2432.0,2431.8,2.65038]
[1730836229935,4.42727229,2432.1,2432.0,2.65038]
[1730836230138,3.2078,2432.6,2432.0,2.65038]
[1730836230338,3.2078,2433.1,2432.5,2.65038]
[1730836230545,3.2078,2432.8,2432.6,2.65038]
[1730836230838,3.2078,2433.4,2433.1,2.65038]
[1730836231026,0.207,2433.8,2433.1,2.65038]
[1730836231027,3.2078,2433.8,2433.3,2.44338]
[1730836231230,3.2078,2433.8,2433.6,2.44338]
[1730836231539,0.41088,2433.7,2433.4,2.44338]
[1730836231737,3.2078,2433.5,2432.8,3.2078]
[1730836231938,0.41093,2433.4,2433.1,2.44338]
[1730836232238,3.2078,2433.2,2431.8,3.2078]
[1730836232442,4.42727229,2432.3,2432.1,2.44338]
[1730836232735,4.42727229,2432.3,2432.0,2.44338]
[1730836233033,4.42727229,2432.7,2432.2,2.44338]
[1730836233234,7.63507229,2432.3,2432.0,2.44338]
[1730836233429,40.8,2432.2,2431.6,2.44338]
[1730836233632,0.41121,2431.7,2431.5,0.4296]
[1730836233838,4.42727229,2431.8,2430.9,3.2078]
[1730836233839,3.2078,2431.6,2430.9,3.2078]
[1730836234038,0.41126,2431.4,2431.3,2.44338]
[1730836234229,0.41146,2430.3,2429.6,3.2078]
[1730836234432,0.41146,2430.3,2429.6,3.61935]
[1730836234433,4.42727229,2430.1,2429.6,3.61935]
[1730836234639,45.22727229,2430.1,2429.7,0.41154]
[1730836234834,48.43507229,2430.1,2429.6,3.61935]
[1730836235030,45.22727229,2430.1,2429.6,3.2078]
[1730836235238,4.42727229,2430.4,2430.3,0.41145]
[1730836235445,4.42727229,2430.8,2430.3,5.65118]
[1730836235742,5.34527229,2431.2,2430.8,2.44338]
[1730836235937,7.63507229,2431.6,2431.1,2.23638]
[1730836236140,4.42727229,2432.0,2431.5,2.23638]
[1730836236337,4.42727229,2431.6,2431.1,3.2078]
[1730836236536,7.63507229,2431.2,2430.0,0.2]
[1730836236739,4.42727229,2430.1,2428.9,0.41168]
[1730836236941,4.42727229,2429.5,2429.3,2.23638]
[1730836237143,0.41165,2429.2,2428.4,3.2078]
[1730836237347,4.42727229,2428.9,2428.5,3.2078]
[1730836237548,3.2078,2429.4,2429.2,2.23638]
[1730836237748,4.42727229,2429.6,2429.5,2.23638]
[1730836237749,45.22727229,2429.6,2429.5,2.23638]
[1730836237940,4.42727229,2430.0,2429.5,2.23638]
[1730836238135,4.42727229,2430.0,2428.0,10.7321]
[1730836238136,3.2078,2430.1,2429.6,3.2078]
[1730836238434,4.42727229,2430.4,2426.9,6.784]
[1730836238435,4.42727229,2430.3,2429.5,3.2078]
[1730836238649,4.42727229,2430.3,2428.2,1.0295]
[1730836238650,4.42727229,2430.3,2429.2,3.2078]
[1730836238837,3.2078,2430.0,2429.7,0.41153]
[1730836239039,0.41134,2431.0,2429.2,3.2078]
[1730836239040,4.42727229,2430.8,2429.9,3.2078]
[1730836239235,4.42727229,2430.8,2430.7,2.23638]
[1730836239236,7.63507229,2430.8,2430.7,2.23638]
[1730836239836,3.2078,2430.8,2430.7,2.23638]
[1730836240243,3.2078,2430.8,2430.1,3.71428]
[1730836240438,3.2078,2430.8,2430.7,2.23638]
[1730836240837,3.2078,2431.2,2430.7,2.23638]
[1730836241046,3.2078,2431.2,2430.4,3.2078]
[1730836241241,3.3028,2431.5,2431.2,0.41128]
[1730836241444,3.3028,2431.9,2431.4,2.23638]
[1730836241643,3.3028,2431.9,2431.1,3.2078]
[1730836241644,3.2078,2431.9,2431.1,3.2078]
[1730836241842,3.2078,2431.9,2431.8,2.23638]
[1730836242245,0.095,2432.4,2431.8,2.23638]
[1730836242449,7.73007229,2432.7,2432.3,2.23638]
[1730836242745,3.2078,2432.4,2432.0,3.61895]
[1730836242946,3.2078,2432.4,2432.3,2.23638]
[1730836243241,0.095,2432.7,2432.3,5.44418]
[1730836243446,0.095,2433.0,2432.6,2.64743]
[1730836243647,7.63507229,2433.1,2432.3,3.2078]
[1730836243648,7.63507229,2433.1,2433.0,2.23638]
[1730836244451,0.095,2433.6,2433.2,0.41094]
[1730836244752,0.095,2433.6,2433.0,3.2078]
[1730836244753,3.2078,2433.9,2433.5,2.14138]
[1730836244953,40.8,2433.9,2433.7,2.14138]
[1730836245160,3.2078,2433.8,2433.0,2.14138]
[1730836245339,4.42727229,2434.0,2433.0,2.14138]
[1730836245340,3.2078,2433.1,2433.0,2.14138]
[1730836245750,44.0078,2433.1,2433.0,2.14138]
[1730836248649,3.2078,2433.1,2433.0,2.14138]
[1730836249158,44.0078,2433.1,2433.0,2.14138]
[1730836249857,4.42727229,2433.3,2433.0,2.55237]
[1730836250159,4.42727229,2433.3,2432.6,3.2078]
[1730836250160,4.42727229,2433.3,2433.2,2.55234]
[1730836250362,45.22727229,2433.3,2433.2,2.55234]
[1730836250663,48.43507229,2433.3,2432.8,0.41101]
[1730836250853,48.43507229,2433.3,2433.1,2.14138]
[1730836251556,0.41106,2432.6,2432.5,0.096]
[1730836251860,7.63507229,2432.6,2430.9,3.2078]
[1730836252051,4.42727229,2431.9,2431.8,0.41119]
[1730836252247,4.42727229,2431.9,2431.8,4.52319]
[1730836252248,45.22727229,2431.9,2431.8,4.52319]
[1730836252555,4.42727229,2431.9,2431.8,4.52319]
[1730836252751,3.2078,2432.1,2432.0,0.41116]
[1730836252948,2.33562901,2434.3,2431.8,4.112]
[1730836252949,3.2078,2432.6,2431.9,4.112]
[1730836253151,3.2078,2432.6,2432.5,0.41107]
[1730836253346,3.2078,2432.6,2432.1,3.2078]
[1730836253347,4.42727229,2432.7,2432.1,3.2078]
[1730836253547,4.42727229,2432.7,2432.6,0.41106]
[1730836253754,4.42727229,2432.7,2431.2,3.2078]
[1730836253755,7.63507229,2432.7,2431.2,3.2078]
[1730836253953,3.2078,2432.1,2431.5,3.2078]
[1730836254147,3.2078,2431.8,2431.4,0.41126]
[1730836254353,3.2078,2431.8,2431.2,3.2078]
[1730836254558,4.42727229,2431.7,2431.2,3.2078]
[1730836255066,4.42727229,2431.7,2430.6,0.4493]
[1730836255067,3.2078,2431.6,2430.6,3.6571]
[1730836255253,3.2078,2431.6,2431.4,0.41125]
[1730836255453,0.41117,2432.0,2430.9,3.2078]
[1730836255454,3.2078,2432.0,2430.9,3.2078]
[1730836255655,3.2078,2432.0,2430.6,0.4493]
[1730836255656,4.42727229,2432.1,2431.2,3.2078]
[1730836255856,3.2078,2432.3,2432.1,0.41114]
[1730836256056,3.2078,2432.3,2432.0,0.41115]
[1730836256259,3.2078,2432.3,2431.5,3.2078]
[1730836256555,40.8,2432.9,2432.8,0.41102]
[1730836256755,40.8,2432.9,2431.4,2.05626]
[1730836256756,3.2078,2433.1,2432.5,3.61886]
[1730836256953,0.41101,2432.9,2432.5,3.2078]
[1730836257158,40.8,2432.9,2432.5,3.2078]
[1730836257551,7.63507229,2433.1,2432.8,0.41102]
[1730836257764,8.04605229,2433.1,2432.7,0.41103]
[1730836257957,7.63507229,2433.1,2432.8,0.41102]
[1730836258167,40.8,2433.0,2432.9,0.41101]
[1730836258350,3.2078,2433.1,2432.8,0.41101]